bitfinex/quotes_ETHUSD_20230117
["timestamp","ask_amount","ask_price","bid_price","bid_amount"]
[1673978932490,20.91962641,1577.5,1577.2,0.01061969]
[1673978933407,24.41980297,1577.5,1577.2,0.01061969]
[1673978933870,25.36462209,1577.5,1577.2,0.01061969]
[1673978934063,26.87956595,1577.5,1577.2,0.01061969]
[1673978934268,25.35976,1577.3,1577.2,0.01061969]
[1673978934525,25.41796641,1577.3,1577.2,0.01061969]
[1673978934667,22.05994849,1577.3,1577.2,0.01061969]
[1673978934878,28.39988849,1577.3,1577.2,0.01061969]
[1673978935257,22.05994849,1577.3,1577.2,0.01061969]
[1673978936274,6.39814641,1577.3,1577.2,0.01061969]
[1673978936664,0.05820641,1577.3,1577.2,0.01061969]
[1673978936878,6.42180783,1577.4,1577.2,0.01061969]
[1673978937503,12.76151783,1577.4,1577.2,0.01061969]
[1673978940130,20.04604695,1577.4,1577.2,0.01061969]
[1673978940344,21.92924239,1577.4,1577.2,0.01061969]
[1673978941871,22.87406151,1577.4,1577.2,0.01061969]
[1673978942187,21.92924239,1577.4,1577.2,0.01061969]
[1673978942338,22.87406151,1577.4,1577.2,0.01061969]
[1673978943976,21.92924239,1577.4,1577.2,0.01061969]
[1673978944127,19.10122783,1577.4,1577.2,0.01061969]
[1673978945550,20.04604695,1577.4,1577.2,0.01061969]
[1673978946065,20.02215553,1577.4,1577.2,0.01061969]
[1673978946435,19.07733641,1577.4,1577.2,0.01061969]
[1673978950027,1.0,1577.3,1577.2,0.01061969]
[1673978950213,3.24393842,1577.3,1577.2,0.01061969]
[1673978950427,23.20857754,1577.3,1577.2,0.01061969]
[1673978950642,23.26678395,1577.3,1577.2,0.01061969]
[1673978950884,22.32196483,1577.3,1577.2,0.01061969]
[1673978951105,21.32196483,1577.3,1577.2,0.01061969]
[1673978951486,0.05820641,1577.3,1577.2,0.01061969]
[1673978951715,16.90133553,1577.4,1577.2,0.01061969]
[1673978951927,7.34273553,1577.4,1577.2,0.01061969]
[1673978959815,6.39791641,1577.4,1577.2,0.01061969]
[1673978961108,0.05820641,1577.4,1577.2,6.35090969]
[1673978961267,10.77734759,1577.5,1577.2,6.41500969]
[1673978961682,9.33622749,1577.5,1577.2,8.47513264]
[1673978963981,8.86062749,1577.5,1577.2,8.47513264]
[1673978964381,2.52128749,1577.5,1577.2,11.59175671]
[1673978964597,30.48954421,1577.6,1577.2,17.93209671]
[1673978964787,30.48954421,1577.6,1577.2,24.27243671]
[1673978964998,29.07231553,1577.6,1577.3,3.86924367]
[1673978965209,30.48954421,1577.6,1577.3,10.20907367]
[1673978965419,30.48954421,1577.6,1577.3,10.27317367]
[1673978965644,29.07231553,1577.6,1577.3,13.38979774]
[1673978966822,22.25782553,1577.6,1577.3,19.72973774]
[1673978967045,22.25782553,1577.6,1577.4,1.97297377]
[1673978967632,12.69922553,1577.6,1577.4,1.97297377]
[1673978969656,0.05820641,1577.6,1577.5,3.11662407]
[1673978969866,0.94481912,1577.7,1577.5,10.89376407]
[1673978970094,2.18290507,1577.7,1577.6,1.08937641]
[1673978972051,2.18290507,1577.7,1577.5,10.95786407]
[1673978972267,3.60013375,1577.7,1577.5,9.51986407]
[1673978972664,9.93850375,1577.7,1577.5,0.0641]
[1673978972876,2.18290507,1577.6,1577.4,1.5061]
[1673978973145,2.18290507,1577.6,1577.4,4.55862407]
[1673978973367,2.18290507,1577.6,1577.4,3.11662407]
[1673978974512,1.00302553,1577.7,1577.5,4.55862407]
[1673978974830,2.18311935,1577.7,1577.5,10.89776407]
[1673978975034,2.18311935,1577.7,1577.5,10.96186407]
[1673978977531,31.18140107,1577.8,1577.5,10.96186407]
[1673978978785,2.18259524,1577.7,1577.5,10.96186407]
[1673978978996,2.18259524,1577.7,1577.5,13.54795532]
[1673978979511,0.94481912,1577.7,1577.5,10.96186407]
[1673978979725,2.18258064,1577.7,1577.5,3.18072407]
[1673978979939,2.18258064,1577.7,1577.5,3.11662407]
[1673978980137,3.69911141,1577.7,1577.5,3.11662407]
[1673978983593,3.69911141,1577.7,1577.4,7.84563]
[1673978983807,3.69911141,1577.7,1577.4,0.0641]
[1673978983808,0.36991114,1577.6,1577.4,0.0641]
[1673978984052,12.67776,1577.6,1577.3,4.442]
[1673978984244,0.05820641,1577.6,1577.4,4.55862407]
[1673978984592,0.94481912,1577.7,1577.5,9.45576407]
[1673978984757,29.19484509,1577.8,1577.5,9.51986407]
[1673978984758,31.65619498,1577.8,1577.5,9.51986407]
[1673978985425,31.65619498,1577.8,1577.5,3.18072407]
[1673978985674,2.18258449,1577.7,1577.5,3.11662407]
[1673978987210,3.69910438,1577.7,1577.5,3.11662407]
[1673978987826,0.94481912,1577.7,1577.5,3.11662407]
[1673978988028,3.6990838,1577.7,1577.5,3.11662407]
[1673978989170,4.72429465,1577.7,1577.5,3.11662407]
[1673978989384,3.48654211,1577.7,1577.5,3.11662407]
[1673978990119,2.46133126,1577.7,1577.5,9.45573407]
[1673978990331,2.46133126,1577.7,1577.5,9.51983407]
[1673978990332,0.94481912,1577.7,1577.5,9.51983407]
[1673978990536,2.18266488,1577.7,1577.5,9.51983407]
[1673978990790,21.90882553,1577.8,1577.6,3.11662407]
[1673978990976,12.94512553,1577.8,1577.6,17.23572407]
[1673978991187,12.94512553,1577.8,1577.6,19.66371748]
[1673978992105,12.94512553,1577.8,1577.6,11.88304748]
[1673978992365,14.36235421,1577.8,1577.6,3.18072407]
[1673978992536,15.87889803,1577.8,1577.6,3.11662407]
[1673978993229,0.94481912,1577.7,1577.5,1.5061]
[1673978993445,14.85970802,1577.7,1577.4,0.0641]
[1673978993794,14.85970802,1577.7,1577.3,6.40382]
[1673978993795,8.52181648,1577.6,1577.3,6.40382]
[1673978993953,7.34199553,1577.6,1577.3,9.52044407]
[1673978994835,1.00302553,1577.6,1577.3,15.86038407]
[1673978995050,0.94481912,1577.6,1577.3,15.86038407]
[1673978995262,2.18292307,1577.6,1577.3,18.96271762]
[1673978995792,2.18292307,1577.6,1577.4,4.55862407]
[1673978995999,2.18292307,1577.6,1577.5,9.45576407]
[1673978996156,2.18292307,1577.6,1577.5,9.51986407]
[1673978996981,2.42025421,1577.7,1577.5,9.51986407]
[1673978997144,2.3620478,1577.7,1577.5,9.51986407]
[1673978997331,3.600345,1577.7,1577.5,9.51986407]
[1673978999631,2.18311632,1577.6,1577.5,9.51986407]
[1673979000368,2.42025421,1577.7,1577.5,9.51986407]
[1673979000584,0.94481912,1577.6,1577.5,9.51986407]
[1673979004532,0.94481912,1577.6,1577.5,11.88392148]
[1673979004670,0.94481912,1577.7,1577.6,0.93663473]
[1673979004879,2.18455404,1577.7,1577.6,11.8339988]
[1673979005135,2.18455404,1577.7,1577.6,14.59214242]
[1673979006808,2.51956935,1577.8,1577.6,27.26962242]
[1673979006976,3.60184872,1577.8,1577.7,4.55862407]
[1673979007191,2.18462004,1577.8,1577.7,10.89696407]
[1673979007434,2.18462004,1577.8,1577.7,10.96106407]
[1673979007664,3.60184872,1577.8,1577.7,12.05642247]
[1673979007889,2.18462004,1577.8,1577.7,12.05642247]
[1673979008034,3.60184872,1577.8,1577.7,18.39476247]
[1673979008941,2.18462004,1577.8,1577.7,18.39476247]
[1673979009873,2.18462004,1577.8,1577.7,18.39157528]
[1673979010185,0.94481912,1577.8,1577.7,18.39157528]
[1673979010396,0.94481912,1577.9,1577.7,26.16291528]
[1673979010568,3.56199362,1577.9,1577.8,13.5128456]
[1673979010776,3.56199362,1577.9,1577.8,13.5769456]
[1673979011205,2.14476494,1577.9,1577.8,13.5769456]
[1673979011645,2.14476494,1577.9,1577.8,12.1349456]
[1673979013411,2.14476494,1577.9,1577.8,24.8108056]
[1673979014136,2.42025421,1578.0,1577.8,27.8108056]
[1673979014344,2.3620478,1578.0,1577.9,5.89770463]
[1673979014603,3.56125823,1578.0,1577.9,9.51825407]
[1673979016996,3.56125823,1578.0,1577.9,0.0641]
[1673979017362,22.10654953,1578.0,1577.6,0.06673473]
[1673979017510,22.10654953,1578.0,1577.7,3.11662407]
[1673979017511,0.94882918,1577.8,1577.7,3.11662407]
[1673979017723,7.28675918,1577.8,1577.7,3.11662407]
[1673979018033,14.88210602,1577.8,1577.6,0.06673473]
[1673979018280,20.02082559,1577.8,1577.6,0.00263473]
[1673979018451,2.52357941,1577.8,1577.6,3.1192588]
[1673979018661,2.37207295,1577.8,1577.6,3.1192588]
[1673979018941,3.66420415,1577.8,1577.6,3.1192588]
[1673979019081,2.465373,1577.8,1577.6,3.1192588]
[1673979019718,2.465373,1577.8,1577.6,9.4579788]
[1673979019976,2.465373,1577.8,1577.6,9.5220788]
[1673979020167,0.94882918,1577.8,1577.6,9.5220788]
[1673979020344,2.14766008,1577.8,1577.6,15.8608188]
[1673979021769,2.14766008,1577.8,1577.7,3.11662407]
[1673979027391,3.51544782,1577.8,1577.6,0.06673473]
[1673979027639,0.94882918,1577.7,1577.6,3.1192588]
[1673979027866,3.73986069,1577.8,1577.6,3.1192588]
[1673979028072,0.94882918,1577.7,1577.6,3.1192588]
[1673979028292,2.14794598,1577.7,1577.6,3.1192588]
[1673979029828,3.94682318,1577.8,1577.6,9.4579988]
[1673979030061,2.37207295,1577.8,1577.6,15.8608388]
[1673979030253,3.57110162,1577.8,1577.6,15.8608388]
[1673979031935,0.94882918,1577.8,1577.6,15.8608388]
[1673979032149,2.14758536,1577.8,1577.6,15.8608388]
[1673979032549,3.57082913,1577.8,1577.6,9.5220988]
[1673979032762,6.96028498,1577.8,1577.6,9.5220988]
[1673979032968,2.14750425,1577.7,1577.6,0.06673473]
[1673979033180,9.96025884,1577.7,1577.6,0.0002008]
[1673979033454,22.69514525,1577.7,1577.6,0.0002008]
[1673979033642,25.83660465,1577.7,1577.6,0.0002008]
[1673979033851,28.22680998,1577.7,1577.6,0.0002008]
[1673979034063,39.75334403,1577.7,1577.6,0.0002008]
[1673979034230,41.18234403,1577.7,1577.6,0.0002008]
[1673979035818,1.0,1577.6,1577.3,30.2041]
[1673979036013,0.94890768,1577.4,1577.3,0.0641]
[1673979036225,19.96752768,1577.4,1577.2,0.01061969]
[1673979036439,7.34665409,1577.4,1577.2,0.01061969]
[1673979037289,6.39774641,1577.4,1577.2,0.01061969]
[1673979038682,9.27231035,1577.4,1577.2,0.01061969]
[1673979042969,6.39774641,1577.4,1577.2,0.01061969]
[1673979044002,12.73728641,1577.4,1577.2,0.01061969]
[1673979044531,6.39774641,1577.4,1577.2,0.01061969]
[1673979045202,0.05820641,1577.4,1577.2,0.01061969]
[1673979045368,34.77165409,1577.5,1577.2,0.01061969]
[1673979046438,34.77165409,1577.5,1577.2,3.12724376]
[1673979049521,34.67165409,1577.5,1577.2,3.12724376]
[1673979050739,34.67165409,1577.5,1577.3,1.34845961]
[1673979051469,41.01105409,1577.5,1577.3,1.34845961]
[1673979051717,32.04505409,1577.5,1577.3,1.34845961]
[1673979052039,20.01862,1577.4,1577.3,1.34845961]
[1673979052195,24.92327925,1577.4,1577.3,1.34845961]
[1673979053522,23.92327925,1577.4,1577.3,1.34845961]
[1673979055265,26.03362202,1577.4,1577.3,1.34845961]
[1673979055733,24.87218693,1577.4,1577.3,1.34845961]
[1673979055942,18.53264693,1577.4,1577.3,1.34845961]
[1673979056106,19.69408555,1577.4,1577.3,1.34845961]
[1673979059733,26.03362555,1577.4,1577.3,1.34845961]
[1673979060104,25.55802555,1577.4,1577.3,1.34845961]
[1673979060520,25.55802555,1577.4,1577.3,1.34523791]
[1673979061207,27.01720073,1577.4,1577.3,1.34523791]
[1673979063838,20.67766073,1577.4,1577.3,1.34523791]
[1673979067180,22.10102225,1577.4,1577.3,1.34523791]
[1673979069190,21.15211457,1577.4,1577.3,1.34523791]
[1673979070312,20.67772834,1577.4,1577.3,1.34523791]
[1673979070943,27.01726834,1577.4,1577.3,1.34523791]
[1673979071159,29.38946992,1577.4,1577.3,1.34523791]
[1673979071808,30.82646992,1577.4,1577.3,1.34523791]
[1673979073405,29.4031084,1577.4,1577.3,1.34523791]
[1673979076880,29.87773238,1577.4,1577.3,1.34523791]
[1673979079543,28.44073238,1577.4,1577.3,1.34523791]
[1673979079962,29.87773238,1577.4,1577.3,1.34523791]
[1673979080961,29.63873238,1577.4,1577.3,1.34523791]
[1673979084695,29.63873238,1577.4,1577.3,1.34195693]
[1673979085233,29.63873238,1577.4,1577.0,0.13240852]
[1673979085234,25.363,1577.1,1577.0,0.13240852]
[1673979085434,34.88844428,1577.1,1577.0,0.06830852]
[1673979085646,31.86414428,1577.1,1577.0,0.06830852]
[1673979086125,56.1492866,1577.1,1577.0,0.06830852]
[1673979086642,55.9192866,1577.1,1577.0,0.06830852]
[1673979086788,61.96256599,1577.1,1577.0,0.06830852]
[1673979087001,60.05594192,1577.1,1577.0,0.06830852]
[1673979087226,61.95445341,1577.1,1577.0,0.06830852]
[1673979088108,59.58121109,1577.1,1577.0,0.06830852]
[1673979090064,57.41971966,1577.1,1577.0,0.06830852]
[1673979091834,57.44361108,1577.1,1577.0,0.06830852]
[1673979093246,58.65061108,1577.1,1577.0,0.06830852]
[1673979096034,59.59871548,1577.1,1577.0,0.06830852]
[1673979097399,59.57482406,1577.1,1577.0,0.06830852]
[1673979097648,44.56107461,1577.1,1577.0,0.06830852]
[1673979099441,45.98379467,1577.1,1577.0,0.06830852]
[1673979101831,44.56107461,1577.1,1577.0,0.06830852]
[1673979102080,43.10189943,1577.1,1577.0,0.06830852]
[1673979102247,0.05820641,1577.1,1577.0,1.10830852]
[1673979102456,6.39870641,1577.2,1577.0,1.22650517]
[1673979102868,7.34681081,1577.2,1577.0,1.22650517]
[1673979103448,7.34681081,1577.2,1577.0,0.18650517]
[1673979103622,13.68738081,1577.2,1577.0,0.06830852]
[1673979106171,12.73927641,1577.2,1577.0,0.06830852]
[1673979106383,6.39870641,1577.2,1577.0,0.06830852]
[1673979109498,0.05820641,1577.2,1577.0,17.31209259]
[1673979109712,0.9481044,1577.3,1577.1,1.73120926]
[1673979110050,8.57508757,1577.3,1577.1,1.73120926]
[1673979110259,7.34627081,1577.3,1577.0,11.03504259]
[1673979110568,8.89961349,1577.3,1577.0,11.03504259]
[1673979110795,7.34627081,1577.3,1577.0,11.03504259]
[1673979113175,7.34627081,1577.3,1577.0,4.69403259]
[1673979113386,13.68623081,1577.3,1577.0,4.62993259]
[1673979114273,20.02619081,1577.3,1577.0,4.62993259]
[1673979114449,21.57953349,1577.3,1577.0,1.51330852]
[1673979114657,21.57953349,1577.3,1577.0,0.06830852]
[1673979114919,23.00225355,1577.3,1577.0,0.06830852]
[1673979116556,28.35728305,1577.3,1577.0,0.06830852]
[1673979119284,2.23585753,1577.2,1577.0,0.06830852]
[1673979119496,6.34075,1577.1,1577.0,0.06830852]
[1673979119751,6.39895641,1577.1,1577.0,0.06830852]
[1673979121076,19.08045641,1577.1,1577.0,0.06830852]
[1673979121284,24.74207545,1577.1,1577.0,0.06464978]
[1673979121497,23.31935539,1577.1,1577.0,0.06464978]
[1673979122369,24.87269807,1577.1,1577.0,0.06464978]
[1673979123819,25.34839807,1577.1,1577.0,0.06464978]
[1673979124197,26.77111813,1577.1,1577.0,0.06464978]
[1673979124367,26.29541813,1577.1,1577.0,0.06464978]
[1673979124856,24.87269807,1577.1,1577.0,0.06464978]
[1673979125748,25.34731373,1577.1,1577.0,0.06464978]
[1673979125912,27.24582522,1577.1,1577.0,0.06464978]
[1673979126271,25.82310516,1577.1,1577.0,0.06464978]
[1673979127927,37.28620516,1577.1,1577.0,0.06464978]
[1673979131112,41.09744748,1577.1,1577.0,0.06464978]
[1673979131440,41.57314748,1577.1,1577.0,0.06464978]
[1673979132774,39.19990516,1577.1,1577.0,0.06464978]
[1673979133298,39.19990516,1577.1,1577.0,1.10464978]
[1673979133299,23.07594239,1577.1,1577.0,1.10464978]
[1673979133514,11.61284239,1577.1,1577.0,1.10464978]
[1673979133847,10.05949971,1577.1,1577.0,1.10464978]
[1673979134220,10.05949971,1577.1,1577.0,0.06464978]
[1673979139930,6.39895641,1577.1,1577.0,0.06464978]
[1673979140596,0.05820641,1577.1,1577.0,5.66627385]
[1673979140811,2.3726048,1577.3,1577.0,19.63666703]
[1673979140997,0.94904185,1577.2,1577.1,7.78575]
[1673979141210,0.94904185,1577.2,1577.1,7.84985]
[1673979141468,0.94904185,1577.2,1577.1,10.3435917]
[1673979142388,3.65989637,1577.3,1577.1,10.3435917]
[1673979142575,2.3726048,1577.3,1577.1,13.46021577]
[1673979142934,3.51077693,1577.4,1577.2,14.12544]
[1673979142935,2.52642596,1577.4,1577.2,14.12544]
[1673979143103,0.94904185,1577.4,1577.2,14.18954]
[1673979143328,2.18991526,1577.4,1577.2,14.18954]
[1673979143507,2.18991526,1577.4,1577.3,1.418954]
[1673979144138,0.00340047,1577.3,1577.2,6.4042]
[1673979145342,0.00340047,1577.3,1577.2,8.8492]
[1673979145554,0.00340047,1577.3,1577.2,7.8492]
[1673979145924,0.00340047,1577.3,1577.2,8.8492]
[1673979146138,0.00340047,1577.3,1577.2,7.8492]
[1673979146473,0.00340047,1577.3,1577.2,10.35841441]
[1673979149126,0.00054881,1577.3,1577.2,10.35841441]
[1673979151657,0.00054881,1577.3,1577.2,11.35841441]
[1673979151963,0.00054881,1577.3,1577.2,14.47503848]
[1673979152131,0.00054881,1577.3,1577.2,29.38571848]
[1673979162062,0.00054881,1577.3,1577.2,27.94071848]
[1673979166308,0.00054881,1577.3,1577.2,6.18072407]
[1673979166467,0.00054881,1577.3,1577.2,3.18072407]
[1673979166681,0.00054881,1577.3,1577.2,3.11662407]
[1673979174335,1.01154881,1577.3,1577.2,3.11662407]
[1673979174560,13.69142881,1577.3,1577.1,0.0641]
[1673979174764,1.11215488,1577.2,1577.0,0.06464978]
[1673979174978,7.45253488,1577.2,1577.0,0.06464978]
[1673979175319,7.51074129,1577.2,1577.0,0.06464978]
[1673979175899,13.847177,1577.2,1577.0,0.06464978]
[1673979176211,1.3847177,1577.1,1577.0,0.06464978]
[1673979176423,12.836177,1577.2,1577.0,0.06464978]
[1673979176424,19.176807,1577.2,1577.0,0.06464978]
[1673979176689,20.12584885,1577.2,1577.0,0.06464978]
[1673979178021,21.5494118,1577.2,1577.0,0.06464978]
[1673979178381,2.5280218,1577.2,1577.0,0.06464978]
[1673979178676,8.81019539,1577.2,1577.0,0.06464978]
[1673979178886,2.19880714,1577.1,1577.0,0.06464978]
[1673979179206,8.53955714,1577.1,1577.0,0.06464978]
[1673979179379,8.59776355,1577.1,1577.0,0.06464978]
[1673979180577,0.05820641,1577.1,1577.0,0.06464978]
[1673979180735,7.34762826,1577.2,1577.0,0.06464978]
[1673979181366,1.00724826,1577.2,1577.0,0.06464978]
[1673979181612,0.94904185,1577.2,1577.0,0.06464978]
[1673979181819,2.1988314,1577.2,1577.0,0.06464978]
[1673979182039,8.5392014,1577.2,1577.0,0.06464978]
[1673979182378,7.34761826,1577.2,1577.0,0.06464978]
[1673979182671,10.60918309,1577.2,1577.0,0.06464978]
[1673979183054,0.4757,1577.1,1577.0,0.06464978]
[1673979183269,6.81645,1577.1,1577.0,0.06464978]
[1673979183480,6.87465641,1577.1,1577.0,0.06464978]
[1673979183812,7.82369826,1577.1,1577.0,0.06464978]
[1673979184146,0.05820641,1577.1,1577.0,0.06464978]
[1673979184366,20.31682261,1577.2,1577.0,0.06464978]
[1673979184367,18.95146607,1577.2,1577.0,0.06464978]
[1673979184680,20.37502902,1577.2,1577.0,0.06464978]
[1673979185037,2.0375029,1577.1,1577.0,0.06464978]
[1673979185246,4.23615871,1577.1,1577.0,0.06464978]
[1673979185988,16.91765871,1577.1,1577.0,0.06464978]
[1673979186197,24.76161512,1577.1,1577.0,0.06464978]
[1673979186669,29.05534771,1577.1,1577.0,0.06464978]
[1673979186875,29.15723948,1577.1,1577.0,0.06464978]
[1673979187618,50.96343948,1577.1,1577.0,0.06464978]
[1673979187771,51.23243948,1577.1,1577.0,0.06464978]
[1673979188451,52.65505772,1577.1,1577.0,0.06464978]
[1673979189042,50.75654623,1577.1,1577.0,0.06464978]
[1673979190458,51.70460824,1577.1,1577.0,0.06464978]
[1673979191072,48.81460824,1577.1,1577.0,0.06464978]
[1673979191289,49.31154623,1577.1,1577.0,0.06464978]
[1673979198378,50.25888656,1577.1,1577.0,0.06464978]
[1673979200000,45.35334333,1577.1,1577.0,0.06464978]
[1673979200258,28.47415641,1577.1,1577.0,0.06126759]
[1673979205218,34.81490641,1577.1,1577.0,0.06126759]
[1673979205431,35.7622936,1577.1,1577.0,0.06126759]
[1673979205743,37.01010988,1577.1,1577.0,0.06126759]
[1673979206793,38.53417117,1577.1,1577.0,0.06126759]
[1673979207154,49.50463711,1577.1,1577.0,0.06126759]
[1673979210361,51.87837965,1577.1,1577.0,0.06126759]
[1673979210518,50.93146141,1577.1,1577.0,0.06126759]
[1673979210987,50.45576141,1577.1,1577.0,0.06126759]
[1673979212042,52.82900373,1577.1,1577.0,0.06126759]
[1673979214034,50.93049224,1577.1,1577.0,0.06126759]
[1673979214510,54.04711631,1577.1,1577.0,0.06126759]
[1673979214722,1.0,1577.0,1576.9,0.0557631]
[1673979215085,30.09879276,1577.0,1576.9,0.0557631]
[1673979215295,32.53024149,1577.0,1576.9,0.0557631]
[1673979215508,30.15699917,1577.0,1576.9,0.0557631]
[1673979216351,32.53024149,1577.0,1576.9,0.0557631]
[1673979216720,33.96924149,1577.0,1576.9,0.0557631]
[1673979217298,31.59599917,1577.0,1576.9,0.0557631]
[1673979218398,33.96924149,1577.0,1576.9,0.0557631]
[1673979219135,34.46883291,1577.0,1576.9,0.0557631]
[1673979220306,37.58545698,1577.0,1576.9,0.0557631]
[1673979220515,35.68670342,1577.0,1576.9,0.0557631]
[1673979221287,35.21100342,1577.0,1576.9,0.0557631]
[1673979221669,36.3377611,1577.0,1576.9,0.0557631]
[1673979221879,41.1009309,1577.0,1576.9,0.0557631]
[1673979222304,41.1009309,1577.0,1576.5,0.07583577]
[1673979222305,0.0745019,1576.7,1576.5,0.07583577]
[1673979222515,35.4412862,1576.6,1576.5,0.07583577]
[1673979222747,44.47637287,1576.6,1576.5,0.07583577]
[1673979223267,48.45112908,1576.6,1576.5,0.07583577]
[1673979224120,1.0,1576.5,1576.4,0.07583577]
[1673979224343,31.62847078,1576.5,1576.4,0.07583577]
[1673979224655,31.21016214,1576.5,1576.4,0.07583577]
[1673979224861,28.09353807,1576.5,1576.4,0.07583577]
[1673979225071,31.21016214,1576.5,1576.4,0.07583577]
[1673979225286,32.65516214,1576.5,1576.4,0.07583577]
[1673979226020,32.67905356,1576.5,1576.4,0.07583577]
[1673979226194,33.15495356,1576.5,1576.4,0.07583577]
[1673979226659,32.15495356,1576.5,1576.4,0.07583577]
[1673979226812,33.10296225,1576.5,1576.4,0.07583577]
[1673979227437,32.15495356,1576.5,1576.4,0.07583577]
[1673979227649,32.63146861,1576.5,1576.4,0.07583577]
[1673979227931,34.05356063,1576.5,1576.4,0.07583577]
[1673979228091,32.63146861,1576.5,1576.4,0.07583577]
[1673979229814,32.63146861,1576.5,1576.3,0.04985307]
[1673979229815,1.0,1576.4,1576.3,0.04985307]
[1673979230015,31.46542393,1576.4,1576.3,0.04985307]
[1673979230173,33.04769163,1576.4,1576.3,0.04985307]
[1673979230497,31.6267976,1576.4,1576.3,0.04985307]
[1673979230714,33.04709394,1576.4,1576.3,0.04985307]
[1673979231539,32.10042894,1576.4,1576.3,0.04985307]
[1673979231786,33.04709449,1576.4,1576.3,0.04985307]
[1673979232372,31.62620046,1576.4,1576.3,0.04985307]
[1673979233050,27.90765734,1576.4,1576.3,0.04985307]
[1673979233272,25.46865734,1576.4,1576.3,0.04985307]
[1673979233439,22.35203327,1576.4,1576.3,0.04985307]
[1673979238945,22.30203327,1576.4,1576.3,0.04985307]
[1673979240841,22.30203327,1576.4,1576.3,1.51716698]
[1673979246707,6.40176641,1576.4,1576.3,1.51716698]
[1673979246919,0.05820641,1576.4,1576.3,1.51716698]
[1673979247126,12.74473641,1576.5,1576.3,1.51716698]
[1673979248191,3.11662407,1576.4,1576.3,1.51716698]
[1673979248400,22.14730407,1576.4,1576.3,1.51716698]
[1673979248612,25.34472349,1576.4,1576.3,1.51716698]
[1673979249033,26.29138904,1576.4,1576.3,1.51716698]
[1673979249248,25.34472349,1576.4,1576.3,1.51716698]
[1673979249630,27.5590356,1576.4,1576.3,1.51716698]
[1673979249871,24.44241153,1576.4,1576.3,1.51716698]
[1673979250100,22.70399942,1576.4,1576.3,1.51716698]
[1673979250529,22.22809942,1576.4,1576.3,1.51716698]
[1673979251973,19.08888641,1576.4,1576.3,1.51716698]
[1673979252533,12.74532641,1576.4,1576.3,1.51716698]
[1673979254831,13.69199196,1576.4,1576.3,1.51716698]
[1673979255466,12.74532641,1576.4,1576.3,1.51716698]
[1673979257600,0.05820641,1576.4,1576.3,1.51716698]
[1673979257741,15.05403958,1576.5,1576.3,7.86113698]
[1673979257742,1.00487196,1576.5,1576.3,7.86113698]
[1673979258118,22.99264584,1576.6,1576.3,1.58126698]
[1673979258261,22.99264584,1576.6,1576.3,1.51716698]
[1673979258262,21.45486599,1576.6,1576.3,1.51716698]
[1673979258470,2.21713031,1576.5,1576.3,1.51716698]
[1673979259147,8.56030031,1576.5,1576.3,1.51716698]
[1673979259371,1.00487196,1576.5,1576.3,8.80724424]
[1673979259553,7.34782196,1576.6,1576.3,10.31434424]
[1673979260525,2.21829246,1576.5,1576.3,10.31434424]
[1673979260718,2.21829246,1576.5,1576.3,3.97045424]
[1673979260923,2.21829246,1576.5,1576.3,3.90635424]
[1673979261466,2.21829246,1576.5,1576.4,0.39063542]
[1673979261680,2.21829246,1576.5,1576.3,10.25027424]
[1673979261833,2.21829246,1576.5,1576.3,10.31437424]
[1673979262208,2.21829246,1576.5,1576.3,3.97045424]
[1673979262521,2.21829246,1576.5,1576.3,2.96016698]
[1673979263671,2.21829246,1576.5,1576.3,9.30407698]
[1673979263846,2.21829246,1576.5,1576.3,9.36817698]
[1673979264464,10.30649584,1576.6,1576.3,9.36817698]
[1673979264783,7.34782196,1576.6,1576.4,0.9368177]
[1673979265446,8.76871599,1576.6,1576.4,0.9368177]
[1673979266681,7.34782196,1576.6,1576.4,0.9368177]
[1673979267508,1.00487196,1576.6,1576.4,0.9368177]
[1673979267718,0.94666555,1576.6,1576.4,0.9368177]
[1673979267981,2.21771905,1576.6,1576.4,0.9368177]
[1673979269198,3.7554989,1576.6,1576.4,0.9368177]
[1673979269406,1.07937386,1576.7,1576.5,20.82662584]
[1673979269668,0.0745019,1576.7,1576.6,2.48721577]
[1673979269856,0.0745019,1576.7,1576.6,15.17273577]
[1673979270046,0.0745019,1576.7,1576.6,17.86036593]
[1673979270593,0.0745019,1576.7,1576.6,24.20312593]
[1673979271287,0.0745019,1576.7,1576.6,27.31975]
[1673979274435,0.07200262,1576.7,1576.6,27.31975]
[1673979280867,0.07200262,1576.7,1576.6,30.54975]
[1673979290087,0.07200262,1576.7,1576.6,19.82036593]
[1673979290260,0.07200262,1576.7,1576.6,17.19683577]
[1673979291123,0.07200262,1576.7,1576.6,15.75183577]
[1673979298795,0.07200262,1576.7,1576.6,22.09459577]
[1673979299375,0.94666555,1576.9,1576.6,22.09238]
[1673979299581,2.21354664,1576.9,1576.6,22.09238]
[1673979301898,3.48787066,1576.9,1576.6,22.09238]
[1673979302108,2.22098957,1576.9,1576.6,22.09238]
[1673979303400,0.94666555,1576.9,1576.6,22.09238]
[1673979303612,2.21417002,1576.9,1576.6,22.09238]
[1673979304577,3.63506405,1576.9,1576.6,22.09238]
[1673979304888,0.95227385,1576.9,1576.6,22.09238]
[1673979305104,3.63256835,1576.9,1576.6,22.09238]
[1673979305341,2.37316788,1576.9,1576.6,22.09238]
[1673979305486,3.63263489,1576.9,1576.6,22.09238]
[1673979306676,2.20613256,1576.8,1576.6,22.09238]
[1673979306901,0.94666555,1576.8,1576.6,25.01682372]
[1673979307042,2.20663252,1576.8,1576.6,25.01682372]
[1673979307990,2.20663252,1576.8,1576.6,22.09238]
[1673979308685,2.20663252,1576.8,1576.6,25.20900407]
[1673979309288,10.28608026,1576.9,1576.7,3.42498473]
[1673979309520,10.28608026,1576.9,1576.7,22.14370407]
[1673979309842,10.28291701,1576.9,1576.7,23.02392942]
[1673979309992,11.70381104,1576.9,1576.7,22.20780407]
[1673979310192,10.28291701,1576.9,1576.8,2.22078041]
[1673979310410,11.54405141,1576.9,1576.8,12.6839]
[1673979310729,2.26845141,1576.9,1576.8,19.08995]
[1673979310935,2.210245,1576.9,1576.8,19.08995]
[1673979313375,0.00244505,1576.9,1576.8,19.08995]
[1673979314559,0.9491106,1576.9,1576.8,19.08995]
[1673979314866,2.21029548,1576.9,1576.8,19.08995]
[1673979317189,2.21029548,1576.9,1576.8,21.94483041]
[1673979318437,3.63118951,1576.9,1576.8,6.40605]
[1673979318674,3.63118951,1576.9,1576.8,12.748]
[1673979320668,2.68452396,1576.9,1576.8,12.748]
[1673979322877,2.68452396,1576.9,1576.8,19.08995]
[1673979327609,2.68452396,1576.9,1576.8,12.748]
[1673979327801,3.63517058,1576.9,1576.8,12.748]
[1673979328655,3.63517058,1576.9,1576.8,19.08995]
[1673979328972,3.63517058,1576.9,1576.8,21.94480741]
[1673979331392,2.21427655,1576.9,1576.8,21.94480741]
[1673979331549,2.21427655,1576.9,1576.8,25.06143148]
[1673979333137,2.21427655,1576.9,1576.8,28.36983865]
[1673979333138,1.26362993,1576.9,1576.8,28.36983865]
[1673979333363,1.26362993,1576.9,1576.8,31.8264144]
[1673979333364,0.00244505,1576.9,1576.8,31.8264144]
[1673979337495,0.00244505,1576.9,1576.8,35.3264144]